bitfinex-derivatives/quotes_BTCF0:USTF0_20240830
["timestamp","ask_amount","ask_price","bid_price","bid_amount"]
[1724994524434,0.20191348,59014.0,59013.0,0.084722]
[1724994524833,0.19091348,59014.0,59013.0,0.084722]
[1724994525132,0.18791348,59014.0,59013.0,0.084722]
[1724994525531,0.19491348,59014.0,59013.0,0.084722]
[1724994527230,0.18791348,59014.0,59013.0,0.084722]
[1724994527925,0.18591348,59014.0,59013.0,0.084722]
[1724994528229,0.11208871,59014.0,59011.0,0.3608]
[1724994528428,0.12,59012.0,59011.0,0.3608]
[1724994528829,0.29793913,59012.0,59011.0,0.3608]
[1724994530633,0.30693913,59012.0,59011.0,0.3608]
[1724994531035,0.29793913,59012.0,59011.0,0.3608]
[1724994531228,0.31593913,59012.0,59011.0,0.3618]
[1724994532130,0.31793913,59012.0,59011.0,0.3618]
[1724994532435,0.30893913,59012.0,59011.0,0.3608]
[1724994532633,0.31693913,59012.0,59011.0,0.3618]
[1724994533735,0.19693913,59012.0,59011.0,0.3618]
[1724994534534,0.18593913,59012.0,59011.0,0.3618]
[1724994534736,0.18993913,59012.0,59011.0,0.3608]
[1724994534935,0.19993913,59012.0,59011.0,0.3618]
[1724994535637,0.31993913,59012.0,59011.0,0.3618]
[1724994536335,0.30993913,59012.0,59011.0,0.3608]
[1724994536533,0.31993913,59012.0,59011.0,0.3618]
[1724994537130,0.40466313,59012.0,59011.0,0.3618]
[1724994537328,1.51302313,59012.0,59011.0,0.001]
[1724994537836,0.95202691,59012.0,59011.0,0.001]
[1724994538037,0.083728,59009.0,59008.0,0.00025417]
[1724994538237,0.203728,59009.0,59008.0,0.00025417]
[1724994538438,0.38764898,59009.0,59008.0,0.00025417]
[1724994538838,0.38664898,59009.0,59008.0,0.00025417]
[1724994539736,0.40064898,59009.0,59008.0,0.00125417]
[1724994540432,0.41464898,59009.0,59008.0,0.00125417]
[1724994562746,0.29464898,59009.0,59008.0,0.12125417]
[1724994563145,0.41464898,59009.0,59008.0,0.00125417]
[1724994565459,0.92304898,59009.0,59001.0,0.0039]
[1724994565755,0.084742,58999.0,58998.0,0.0039]
[1724994566055,0.084742,58999.0,58996.0,0.01731845]
[1724994566056,0.084745,58998.0,58996.0,0.01731845]
[1724994566257,0.12,58997.0,58993.0,0.0492]
[1724994566456,0.30451303,58997.0,58993.0,0.0492]
[1724994567356,0.12,58994.0,58993.0,0.0492]
[1724994567657,0.31601567,58994.0,58993.0,0.0492]
[1724994568258,0.31601567,58994.0,58993.0,0.51150015]
[1724994568955,0.19601567,58994.0,58993.0,0.51350015]
[1724994569452,0.18016694,58998.0,58997.0,0.084745]
[1724994569652,0.12,58999.0,58998.0,0.084744]
[1724994570052,0.30016694,58999.0,58998.0,0.084744]
[1724994570455,0.08166636,58999.0,58998.0,0.084744]
[1724994572162,0.08666636,58999.0,58998.0,0.084744]
[1724994572961,0.08666636,58999.0,58998.0,0.204744]
[1724994573161,0.09066636,58999.0,58998.0,0.204744]
[1724994574262,0.09066636,58999.0,58998.0,0.084744]
[1724994574862,0.09066636,58999.0,58998.0,0.204744]
[1724994575259,0.09066636,58999.0,58998.0,0.565544]
[1724994576659,0.09066636,58999.0,58998.0,0.445544]
[1724994576861,0.21066636,58999.0,58998.0,0.445544]
[1724994577066,0.09066636,58999.0,58998.0,0.565544]
[1724994580473,0.21066636,58999.0,58998.0,0.445544]
[1724994584367,0.09066636,58999.0,58998.0,0.445544]
[1724994586072,0.09066636,58999.0,58998.0,0.565544]
[1724994587379,6.68367736,58999.0,58998.0,0.565544]
[1724994589682,6.68367736,58999.0,58998.0,0.445544]
[1724994589882,6.68367736,58999.0,58998.0,0.565544]
[1724994595282,6.68367736,58999.0,58998.0,0.445544]
[1724994595485,6.80367736,58999.0,58998.0,0.445544]
[1724994596291,6.80367736,58999.0,58998.0,0.3608]
[1724994596790,6.85512184,58999.0,58998.0,0.3608]
[1724994596989,6.93986384,58999.0,58998.0,0.3608]
[1724994598589,0.084745,58998.0,58993.0,0.3608]
[1724994598884,0.12,58996.0,58993.0,0.3608]
[1724994599085,0.0454,58995.0,58993.0,0.3608]
[1724994599390,0.22257754,58995.0,58993.0,0.3608]
[1724994599592,0.22257754,58995.0,58994.0,0.08475]
[1724994601288,0.22357754,58995.0,58994.0,0.08475]
[1724994605295,0.34357754,58995.0,58994.0,0.08475]
[1724994605990,0.17817754,58995.0,58994.0,0.08475]
[1724994607290,0.17817754,58995.0,58994.0,0.13415]
[1724994609992,0.17817754,58995.0,58994.0,0.64267]
[1724994613202,0.17817754,58995.0,58994.0,0.13415]
[1724994613995,0.17817754,58995.0,58994.0,0.64267]
[1724994615190,0.17817754,58995.0,58994.0,0.13415]
[1724994616307,0.17817754,58995.0,58994.0,0.85575]
[1724994616601,0.001,58995.0,58994.0,1.36427]
[1724994618492,0.001,58995.0,58994.0,0.85575]
[1724994618694,0.001,58995.0,58994.0,0.97575]
[1724994619496,6.594011,58995.0,58994.0,0.97575]
[1724994619903,6.594011,58995.0,58994.0,0.85575]
[1724994620103,6.594011,58995.0,58994.0,0.97575]
[1724994620309,6.594011,58995.0,58994.0,0.92635]
[1724994626405,6.78237152,58995.0,58994.0,0.92635]
[1724994628910,6.78237152,58995.0,58994.0,0.7216]
[1724994629107,6.90237152,58995.0,58994.0,0.7216]
[1724994629503,6.87737152,58995.0,58994.0,0.7216]
[1724994633511,6.87737152,58995.0,58994.0,0.8416]
[1724994634517,6.87737152,58995.0,58994.0,0.7216]
[1724994635714,6.87737152,58995.0,58994.0,0.80635]
[1724994638313,6.82897152,58995.0,58994.0,0.80635]
[1724994641523,6.82897152,58995.0,58994.0,0.92635]
[1724994641927,6.82897152,58995.0,58994.0,0.80635]
[1724994644216,6.82897152,58995.0,58994.0,0.08475]
[1724994644721,6.82897152,58995.0,58994.0,0.80635]
[1724994647931,6.88046375,58995.0,58994.0,0.80635]
[1724994648130,6.82897152,58995.0,58994.0,0.80635]
[1724994649223,6.88061479,58995.0,58994.0,0.80635]
[1724994649427,6.91371952,58995.0,58994.0,0.7216]
[1724994649627,6.82897152,58995.0,58994.0,0.7216]
[1724994649827,6.94897152,58995.0,58994.0,0.7216]
[1724994651832,6.94897152,58995.0,58991.0,0.10213599]
[1724994652038,0.12,58992.0,58991.0,0.10213599]
[1724994652430,0.30492159,58992.0,58991.0,0.10213599]
[1724994653137,0.34992159,58992.0,58991.0,0.10613599]
[1724994653730,0.34992159,58992.0,58991.0,0.10713599]
[1724994659749,0.43467459,58992.0,58991.0,0.02238299]
[1724994660051,0.43467459,58992.0,58991.0,0.005]
[1724994660942,0.94323459,58992.0,58991.0,0.005]
[1724994661241,0.084755,58990.0,58989.0,0.3608]
[1724994661634,0.084763,58985.0,58980.0,0.084769]
[1724994661943,0.17756975,58984.0,58981.0,0.12]
[1724994662132,0.22966125,58984.0,58981.0,0.12]
[1724994662534,0.22366125,58984.0,58981.0,0.12]
[1724994663247,0.22366125,58984.0,58980.0,0.10157028]
[1724994663640,0.22351534,58984.0,58980.0,0.10157028]
[1724994664147,0.12,58983.0,58980.0,0.10157028]
[1724994664441,0.18947086,58982.0,58980.0,0.10157028]
[1724994665443,6.78248186,58982.0,58980.0,0.10157028]
[1724994665948,6.78348186,58982.0,58980.0,0.10157028]
[1724994666547,6.78348186,58982.0,58981.0,0.204768]
[1724994666938,6.78348186,58982.0,58981.0,0.249768]
[1724994667144,6.78448186,58982.0,58981.0,0.249768]
[1724994667749,6.78348186,58982.0,58981.0,0.249768]
[1724994668354,6.78248186,58982.0,58981.0,0.249768]
[1724994671248,6.78248186,58982.0,58981.0,0.610568]
[1724994674765,6.78248186,58982.0,58981.0,0.490568]
[1724994674954,6.78248186,58982.0,58981.0,0.445568]
[1724994675645,6.56220155,58982.0,58981.0,0.445568]
[1724994676059,6.74879627,58982.0,58981.0,0.445568]
[1724994676748,6.80035737,58982.0,58981.0,0.3608]
[1724994676947,6.74879627,58982.0,58981.0,0.3608]
[1724994677358,6.74879627,58982.0,58981.0,0.4808]
[1724994678361,6.74879627,58982.0,58981.0,0.610968]
[1724994678849,6.74879627,58982.0,58981.0,0.490968]
[1724994683660,6.74879627,58982.0,58981.0,0.445568]
[1724994685055,6.74879627,58982.0,58981.0,0.084768]
[1724994685763,6.79599627,58982.0,58981.0,0.084768]
[1724994686964,6.96755719,58982.0,58981.0,0.084768]
[1724994687466,6.91599627,58982.0,58981.0,0.084768]
[1724994687666,6.96742949,58982.0,58981.0,0.084768]
[1724994687963,6.84742949,58982.0,58981.0,0.204768]
[1724994688164,6.80022949,58982.0,58981.0,0.204768]
[1724994688957,6.74879627,58982.0,58980.0,0.01680128]
[1724994689155,6.74879627,58982.0,58979.0,0.084771]
[1724994690576,6.74979627,58982.0,58979.0,0.084771]
[1724994690869,6.75079627,58982.0,58979.0,0.084771]
[1724994691567,6.74979627,58982.0,58979.0,0.084771]
[1724994692658,6.74879627,58982.0,58979.0,0.084771]
[1724994694560,6.74879627,58982.0,58979.0,0.10193654]
[1724994696167,0.12,58980.0,58979.0,0.10193654]
[1724994696362,0.12,58980.0,58979.0,0.01716554]
[1724994696568,0.31172114,58980.0,58976.0,0.3608]
[1724994696859,0.39649114,58980.0,58976.0,0.445574]
[1724994697068,0.39649114,58980.0,58976.0,0.46238799]
[1724994697271,0.12,58977.0,58976.0,0.46238799]
[1724994697677,0.31598179,58977.0,58976.0,0.46238799]
[1724994698475,0.19598179,58977.0,58976.0,0.46238799]
[1724994698776,0.18029881,58979.0,58976.0,0.46238799]
[1724994699276,0.25267,58980.0,58976.0,0.46238799]
[1724994699569,0.18029881,58979.0,58976.0,0.46238799]
[1724994700076,0.001,58977.0,58976.0,0.46238799]
[1724994700373,0.18604411,58977.0,58976.0,0.46238799]
[1724994700874,0.18404411,58977.0,58976.0,0.46238799]
[1724994701171,0.18923812,58979.0,58976.0,0.46238799]
[1724994701474,0.001,58977.0,58976.0,0.46238799]
[1724994701671,0.002,58977.0,58976.0,0.46238799]
[1724994701972,0.30190543,58977.0,58976.0,0.46238799]
[1724994703372,0.30090543,58977.0,58976.0,0.46238799]
[1724994703771,0.18090543,58977.0,58976.0,0.58238799]
[1724994704273,0.18190543,58977.0,58976.0,0.58238799]
[1724994704473,0.30190543,58977.0,58976.0,0.37761399]
[1724994706561,0.18190543,58977.0,58976.0,0.49761399]
[1724994706769,0.18190543,58977.0,58976.0,0.58238999]
[1724994712380,6.74410698,58977.0,58976.0,0.58238999]
[1724994712874,6.59239334,58977.0,58976.0,0.58238999]
[1724994737589,6.71239334,58977.0,58976.0,0.37761399]
[1724994738496,6.59239334,58977.0,58976.0,0.37761399]
[1724994738899,6.59239334,58977.0,58976.0,0.49761399]
[1724994740799,6.64290212,58977.0,58976.0,0.49761399]
[1724994749990,6.59239334,58977.0,58976.0,0.49761399]
[1724994753000,6.71239334,58977.0,58976.0,0.37761399]
[1724994753711,7.22107334,58977.0,58976.0,0.37761399]
[1724994754196,6.71239334,58977.0,58976.0,0.37761399]
[1724994754797,6.79716734,58977.0,58976.0,0.37761399]
[1724994755701,6.79716734,58977.0,58976.0,0.49761399]
[1724994756506,6.79716734,58977.0,58976.0,0.01681399]
[1724994756708,6.79716734,58977.0,58973.0,0.12]
[1724994756909,6.79716734,58977.0,58975.0,0.12]
[1724994758120,6.79816734,58977.0,58975.0,0.121]
[1724994760611,6.79716734,58977.0,58975.0,0.12]
[1724994760811,6.80216734,58977.0,58975.0,0.12]
[1724994761005,0.084776,58976.0,58973.0,0.12]
[1724994761205,0.12,58974.0,58973.0,0.12]
[1724994761613,0.19132237,58974.0,58973.0,0.12]
[1724994762004,0.19578228,58975.0,58973.0,0.12]
[1724994762205,0.19578228,58975.0,58972.0,0.084781]
[1724994762206,0.207776,58976.0,58974.0,0.12]
[1724994762603,0.19578228,58975.0,58974.0,0.12]
[1724994765008,0.19978228,58975.0,58974.0,0.12]
[1724994765206,0.19978228,58975.0,58972.0,0.204781]
[1724994765415,0.12,58974.0,58972.0,0.204781]
[1724994765806,0.19070597,58973.0,58970.0,0.01663336]
[1724994766013,0.12,58971.0,58966.0,0.0039]
[1724994766212,0.12,58971.0,58967.0,0.12]
[1724994766213,0.204783,58971.0,58967.0,0.12]
[1724994766416,0.19123549,58970.0,58967.0,0.12]
[1724994767115,0.19123549,58970.0,58969.0,0.12]
[1724994768717,0.21023549,58970.0,58969.0,0.12]
[1724994772313,0.21023549,58970.0,58969.0,0.13699018]
[1724994775727,0.21023549,58970.0,58969.0,0.58257618]
[1724994782530,0.21023549,58970.0,58969.0,0.10177618]
[1724994782821,0.21023549,58970.0,58969.0,0.22177618]
[1724994787228,0.21023549,58970.0,58969.0,0.13699018]
[1724994789229,0.21023549,58970.0,58969.0,0.01699018]
[1724994789423,0.21023549,58970.0,58968.0,0.4808]
[1724994789927,6.77243704,58970.0,58968.0,0.4808]
[1724994790427,6.76343704,58970.0,58968.0,0.4808]
[1724994790626,6.77143704,58970.0,58968.0,0.4808]
[1724994791429,6.77043704,58970.0,58968.0,0.4808]
[1724994791633,6.85522104,58970.0,58968.0,0.4808]
[1724994793021,6.67809836,58970.0,58968.0,0.4808]
[1724994793530,6.67809836,58970.0,58968.0,0.49795775]
[1724994794325,0.204786,58969.0,58968.0,0.37795775]
[1724994794539,0.253186,58969.0,58968.0,0.37795775]
[1724994794719,0.44283804,58969.0,58968.0,0.49795775]
[1724994795125,0.32283804,58969.0,58968.0,0.49795775]
[1724994795534,0.38200617,58969.0,58968.0,0.49795775]
[1724994795924,0.33183804,58969.0,58968.0,0.49795775]
[1724994796230,0.33983804,58969.0,58968.0,0.49795775]
[1724994798335,0.33983804,58969.0,58968.0,0.37795775]
[1724994798731,0.38999758,58969.0,58968.0,0.37795775]
[1724994799227,0.33983804,58969.0,58968.0,0.01715775]
[1724994799535,0.084792,58965.0,58962.0,0.0039]
[1724994799739,0.204794,58964.0,58962.0,0.12]
[1724994799930,0.38626002,58964.0,58963.0,0.12]
[1724994800127,0.26626002,58964.0,58963.0,0.12]
[1724994802321,0.27226002,58964.0,58963.0,0.12]
[1724994803338,0.084795,58963.0,58961.0,0.01720531]
[1724994803537,0.084795,58963.0,58959.0,0.12]
[1724994803740,0.17939959,58962.0,58959.0,0.12]
[1724994804442,0.17939959,58962.0,58960.0,0.084798]
[1724994805241,0.12,58961.0,58959.0,0.01701996]
[1724994805435,0.12,58961.0,58957.0,0.4808]
[1724994805637,0.18145108,58960.0,58957.0,0.4808]
[1724994805935,0.18145108,58960.0,58959.0,0.12]
[1724994808849,0.18145108,58960.0,58957.0,0.37766729]
[1724994808850,0.54225108,58960.0,58957.0,0.01686729]
[1724994809040,0.54225108,58960.0,58959.0,0.12]
[1724994809943,0.59255518,58960.0,58959.0,0.12]
[1724994811136,0.54225108,58960.0,58957.0,0.12]
[1724994812146,0.12,58959.0,58957.0,0.12]
[1724994812449,0.19190317,58958.0,58957.0,0.12]
[1724994815245,0.19190317,58958.0,58955.0,0.01680436]
[1724994815548,0.12,58957.0,58952.0,0.12]
[1724994815743,0.12,58956.0,58952.0,0.12]
[1724994815949,0.084806,58955.0,58951.0,0.10222078]
[1724994816145,0.084806,58955.0,58952.0,0.12]
[1724994816449,0.08481,58952.0,58951.0,0.01740978]
[1724994816632,0.08481,58952.0,58949.0,0.12]
[1724994816633,0.4808,58953.0,58949.0,0.12]
[1724994816833,0.19022858,58952.0,58949.0,0.12]
[1724994817639,0.19022858,58952.0,58949.0,0.13715636]
[1724994817838,0.084813,58950.0,58949.0,0.13715636]
[1724994818174,0.26932347,58950.0,58949.0,0.13715636]
[1724994818340,0.26932347,58950.0,58949.0,0.01715636]
[1724994818542,0.26932347,58950.0,58947.0,0.12]
[1724994818943,0.27032347,58950.0,58947.0,0.12]
[1724994819145,0.27132347,58950.0,58947.0,0.12]
[1724994819848,0.27132347,58950.0,58949.0,0.12]
[1724994821460,0.27032347,58950.0,58949.0,0.12]
[1724994821637,0.27132347,58950.0,58949.0,0.12]
[1724994822147,0.11403726,58950.0,58949.0,0.12]
[1724994822848,0.19885026,58950.0,58949.0,0.12]
[1724994823035,0.70777026,58950.0,58947.0,0.12]
[1724994823234,0.19885026,58950.0,58947.0,0.12]
[1724994824448,0.19885026,58950.0,58946.0,0.084818]
[1724994824449,0.19785026,58950.0,58946.0,0.084818]
[1724994824649,0.19885026,58950.0,58948.0,0.12]
[1724994828253,0.11403726,58950.0,58948.0,0.12]
[1724994828550,0.23403726,58950.0,58945.0,0.01675782]
[1724994828747,0.4808,58948.0,58944.0,0.12]
[1724994828942,0.4808,58948.0,58946.0,0.084818]
[1724994829148,0.17817034,58947.0,58946.0,0.084818]
[1724994829446,0.17817034,58947.0,58946.0,0.204818]
[1724994830648,0.17817034,58947.0,58942.0,0.01715213]
[1724994830853,0.3608,58943.0,58942.0,0.084824]
[1724994831252,0.54271529,58943.0,58942.0,0.204824]
[1724994832455,0.18291529,58943.0,58942.0,0.204824]
[1724994834351,0.3608,58938.0,58903.0,0.05085329]
[1724994834554,0.7216,58904.0,58888.0,0.05006]
[1724994834747,0.3608,58889.0,58888.0,0.05006]
[1724994834952,0.36105461,58902.0,58889.0,0.0484]
[1724994835155,0.55483999,58916.0,58901.0,0.4808]
[1724994835347,0.3608,58911.0,58910.0,0.12]
[1724994835652,0.55483999,58911.0,58910.0,0.26988]
[1724994835855,0.55483999,58911.0,58904.0,0.21224]
[1724994836153,0.55483999,58911.0,58902.0,0.0453]
[1724994836154,0.19403999,58911.0,58905.0,0.095]
[1724994836346,0.3608,58906.0,58905.0,0.095]
[1724994836548,0.3608,58906.0,58905.0,0.24488]
[1724994836851,0.53951089,58906.0,58905.0,0.24488]
[1724994837352,0.3608,58913.0,58905.0,1.35416]
[1724994837652,0.19350821,58906.0,58905.0,0.095]
[1724994837848,0.3608,58908.0,58905.0,0.36924]
[1724994838256,0.18220745,58907.0,58905.0,0.36924]
[1724994838456,0.18220745,58907.0,58906.0,0.15424]
[1724994838958,0.013,58906.0,58905.0,0.0472]
[1724994839157,0.013,58906.0,58905.0,0.20144]
[1724994839355,0.19942972,58906.0,58905.0,0.20616]
[1724994839550,0.18642972,58906.0,58905.0,0.20616]
[1724994839757,0.18642972,58906.0,58905.0,0.0472]
[1724994840058,0.20042972,58907.0,58905.0,0.0472]
[1724994840356,0.014,58907.0,58906.0,0.12]
[1724994840858,0.014,58907.0,58896.0,0.10179808]
[1724994840859,1.42692179,58907.0,58888.0,0.05006]
[1724994841048,0.3608,58889.0,58888.0,0.05006]
[1724994841249,0.4808,58889.0,58888.0,0.05006]
[1724994841460,0.55345266,58889.0,58888.0,0.05006]
[1724994841648,0.55345266,58889.0,58888.0,0.17006]
[1724994842058,0.55345266,58889.0,58888.0,0.34006]
[1724994842356,0.55445266,58889.0,58888.0,0.34006]
[1724994842554,0.19365266,58889.0,58888.0,0.34006]
[1724994842762,0.3608,58893.0,58888.0,0.934401]
[1724994842962,0.3608,58893.0,58889.0,0.0957]
[1724994843147,0.18981033,58892.0,58889.0,0.1806]
[1724994843462,0.18981033,58892.0,58890.0,0.084898]
[1724994843757,0.18981033,58892.0,58889.0,0.0957]
[1724994844157,0.18981033,58892.0,58891.0,0.29]
[1724994848169,0.18981033,58892.0,58889.0,0.131601]
[1724994848361,0.18981033,58892.0,58888.0,0.05006]
[1724994848362,0.3608,58890.0,58888.0,0.05006]
[1724994848864,0.3608,58890.0,58867.0,0.3608]
[1724994848865,0.69397721,58889.0,58870.0,0.29]
[1724994849053,0.3608,58876.0,58874.0,0.084922]
[1724994849254,0.7216,58876.0,58870.0,0.29]
[1724994849459,0.3608,58871.0,58870.0,0.29]
[1724994849865,0.54980295,58871.0,58870.0,0.29]
[1724994850664,0.54980295,58871.0,58869.0,0.420329]
[1724994851963,0.55080295,58871.0,58869.0,0.420329]
[1724994852159,0.55080295,58871.0,58869.0,0.130329]
[1724994852466,0.55080295,58871.0,58869.0,0.084929]
[1724994852859,0.00025461,58885.0,58870.0,0.8704]
[1724994853057,0.00025461,58885.0,58884.0,0.29]
[1724994853460,0.00025461,58885.0,58884.0,0.6508]
[1724994853461,0.19655795,58885.0,58884.0,0.6508]
[1724994853666,0.19655795,58885.0,58884.0,0.7]
[1724994854962,0.19655795,58885.0,58884.0,0.3392]
[1724994855163,0.20055795,58885.0,58881.0,0.3608]
[1724994855355,0.20055795,58885.0,58861.0,0.3223]
[1724994855356,0.6508,58882.0,58875.0,0.084921]
[1724994855761,0.18048855,58881.0,58875.0,0.084921]
[1724994855961,0.18048855,58881.0,58869.0,0.494929]
[1724994856463,0.18048855,58881.0,58872.0,0.084925]
[1724994856657,0.18048855,58881.0,58869.0,0.41]
[1724994856963,0.3608,58877.0,58869.0,0.41]
[1724994857365,0.18414384,58876.0,58869.0,0.41]
[1724994857662,0.18414384,58876.0,58851.0,0.3608]
[1724994857663,0.084945,58859.0,58851.0,0.3608]
[1724994857961,0.29,58856.0,58845.0,0.495164]
[1724994858268,0.29,58856.0,58837.0,0.01221591]
[1724994858269,0.6508,58850.0,58837.0,0.01221591]
[1724994858771,0.19046115,58856.0,58848.0,0.44576]
[1724994858956,0.001,58859.0,58855.0,0.6508]
[1724994859163,0.18124816,58859.0,58855.0,0.3608]
[1724994859361,0.18124816,58859.0,58813.0,0.40605548]
[1724994859362,0.001,58859.0,58854.0,0.3608]
[1724994859759,0.18024816,58858.0,58854.0,0.3608]
[1724994860065,0.17717079,58860.0,58854.0,0.3608]
[1724994860375,0.00025484,58861.0,58859.0,0.3608]
[1724994860861,0.17717079,58860.0,58859.0,0.3608]
[1724994861273,0.00025484,58861.0,58859.0,1.555424]
[1724994861459,0.00025484,58861.0,58860.0,0.096]
[1724994861862,0.19443434,58861.0,58860.0,0.096]
[1724994863365,0.19443434,58861.0,58860.0,1.20568]
[1724994863366,0.00025484,58861.0,58860.0,1.20568]
[1724994863671,0.00025484,58861.0,58860.0,0.60568]
[1724994864365,0.18756742,58861.0,58860.0,0.096]
[1724994864565,0.18756742,58861.0,58860.0,1.20568]
[1724994864875,0.00025484,58861.0,58860.0,0.60568]
[1724994865172,0.00025484,58861.0,58860.0,1.20568]
[1724994866268,8.4e-07,58861.0,58860.0,1.20568]
[1724994866770,8.4e-07,58861.0,58860.0,0.096]
[1724994867466,8.4e-07,58861.0,58860.0,0.10995146]
[1724994870468,8.4e-07,58861.0,58860.0,1.21963146]
[1724994871863,8.4e-07,58861.0,58860.0,0.61963146]
[1724994872061,8.4e-07,58861.0,58860.0,1.21963146]
[1724994873578,8.4e-07,58869.0,58868.0,0.084931]
[1724994873781,8.4e-07,58869.0,58868.0,0.735731]
[1724994873967,8.4e-07,58869.0,58868.0,1.845331]
[1724994874569,0.3608,58891.0,58885.0,0.084905]
[1724994874772,0.3608,58891.0,58881.0,0.3608]
[1724994875080,0.18518502,58890.0,58881.0,0.3608]
[1724994875965,0.18518502,58890.0,58888.0,0.084902]
[1724994877870,0.19918502,58890.0,58888.0,0.084902]
[1724994878563,0.00025484,58891.0,58890.0,0.084899]
[1724994878767,0.00025484,58891.0,58887.0,0.3608]
[1724994878967,0.1844921,58889.0,58887.0,0.3608]
[1724994879168,0.18474694,58891.0,58884.0,0.1636]
[1724994879169,0.54554694,58891.0,58888.0,0.084902]
[1724994879369,0.00025484,58891.0,58888.0,0.084902]
[1724994879578,0.19303615,58889.0,58888.0,0.084902]
[1724994879765,0.19303615,58890.0,58888.0,0.084902]
[1724994879971,0.00025484,58891.0,58889.0,0.084901]
[1724994880172,0.19250077,58890.0,58889.0,0.084901]
[1724994880676,0.00025484,58891.0,58889.0,0.084901]
[1724994880974,0.01025484,58891.0,58890.0,0.3379]
[1724994881166,0.01025484,58891.0,58890.0,0.6987]
[1724994881372,0.3608,58910.0,58904.0,0.084879]
[1724994881676,0.19456379,58908.0,58904.0,0.084879]
[1724994881873,0.19456379,58908.0,58902.0,0.3608]
[1724994881874,0.48456379,58908.0,58902.0,0.3608]
[1724994882079,0.29,58908.0,58902.0,0.3608]
[1724994882267,0.18657882,58907.0,58902.0,0.3608]
[1724994882469,0.18657882,58907.0,58905.0,0.084877]
[1724994882781,0.18657882,58909.0,58907.0,0.084874]
[1724994883275,0.00025484,58910.0,58909.0,0.084872]
[1724994883672,0.18137215,58910.0,58909.0,0.084872]
[1724994884474,0.00025484,58910.0,58909.0,0.374872]
[1724994885078,0.01425484,58910.0,58909.0,1.485112]
[1724994885982,0.0977,58926.0,58909.0,1.11024]
[1724994886167,0.0977,58926.0,58920.0,0.3608]
[1724994886369,0.084865,58914.0,58909.0,0.001]
[1724994886571,0.3608,58911.0,58909.0,0.001]
[1724994887075,0.19500195,58910.0,58909.0,0.001]
[1724994887778,0.19500195,58910.0,58909.0,0.012]
[1724994888379,0.19500195,58910.0,58904.0,0.08513359]
[1724994888686,0.19700195,58910.0,58909.0,0.001]
[1724994889186,0.19692195,58910.0,58909.0,0.001]
[1724994889382,0.19492195,58910.0,58904.0,0.08513359]
[1724994890180,0.19492195,58910.0,58904.0,0.00025459]
[1724994890369,0.3608,58906.0,58904.0,0.00025459]
[1724994890779,0.19674955,58905.0,58904.0,0.00025459]
[1724994891577,0.3608,58911.0,58904.0,0.00025459]
[1724994891578,0.001,58910.0,58904.0,0.00025459]
[1724994891875,0.18043653,58910.0,58904.0,0.00025459]
[1724994892072,0.18043653,58910.0,58908.0,0.084873]
[1724994892285,0.17943653,58910.0,58908.0,0.084873]
[1724994893076,0.3608,58918.0,58911.0,0.084869]
[1724994893277,0.3608,58918.0,58912.0,0.084867]
[1724994893479,0.19282087,58914.0,58912.0,0.084867]
[1724994893795,0.3608,58918.0,58913.0,0.084866]
[1724994894084,0.3608,58923.0,58914.0,0.084864]
[1724994894477,0.3608,58923.0,58915.0,0.3608]
[1724994894677,0.3608,58923.0,58914.0,0.084864]
[1724994895284,0.18877336,58915.0,58914.0,0.084864]
[1724994895486,0.18877336,58915.0,58909.0,0.084871]
[1724994895794,0.18877336,58915.0,58909.0,0.249151]
[1724994897091,0.18877336,58915.0,58909.0,0.17800444]
[1724994897282,0.18877336,58915.0,58912.0,0.084867]
[1724994897684,0.18877336,58915.0,58913.0,0.084866]
[1724994898179,0.19077336,58915.0,58913.0,0.084866]
[1724994898488,0.19077336,58915.0,58914.0,0.084865]
[1724994898687,0.18877336,58915.0,58914.0,0.084865]
[1724994898884,0.18977336,58915.0,58914.0,0.084865]
[1724994901692,0.18877336,58915.0,58914.0,0.084865]
[1724994904478,0.18873336,58915.0,58914.0,0.084865]
[1724994904882,0.19073336,58915.0,58914.0,0.084865]
[1724994905684,0.19073336,58915.0,58914.0,0.132965]
[1724994906185,0.00025459,58916.0,58915.0,0.084863]
[1724994906387,0.00025459,58916.0,58915.0,0.133963]
[1724994906582,0.00025459,58916.0,58909.0,0.01372444]
[1724994906787,0.00025459,58916.0,58907.0,0.3608]
[1724994906788,0.1969241,58916.0,58910.0,0.08487]
[1724994906996,0.1969241,58916.0,58911.0,0.084869]
[1724994907493,0.35676222,58918.0,58911.0,0.084869]
[1724994907894,0.19280298,58915.0,58911.0,0.084869]
[1724994908203,0.29,58916.0,58911.0,0.084869]
[1724994908396,0.002,58915.0,58911.0,0.084869]
[1724994908596,0.18965917,58914.0,58911.0,0.084869]
[1724994908803,0.002,58915.0,58914.0,0.084865]
[1724994909997,0.00025459,58919.0,58918.0,0.084859]
[1724994910498,0.19312861,58919.0,58918.0,0.084859]
[1724994911790,0.19312861,58919.0,58918.0,0.09830972]
[1724994913093,0.19512861,58919.0,58918.0,0.09830972]
[1724994914198,0.19512861,58919.0,58918.0,0.01345072]
[1724994914395,0.19512861,58919.0,58914.0,0.084865]
[1724994914997,7.00786455,58915.0,58905.0,0.0491]
[1724994915198,0.3608,58909.0,58904.0,0.00025459]
[1724994915597,0.53993013,58909.0,58904.0,0.00025459]
[1724994915991,1.64921013,58909.0,58906.0,0.01336081]
[1724994916201,0.0608738,58908.0,58904.0,0.00025459]
[1724994916502,0.53993013,58909.0,58904.0,0.00025459]
[1724994916696,0.19117202,58907.0,58904.0,0.00025459]
[1724994916896,0.19117202,58908.0,58904.0,0.00025459]
[1724994917203,0.3608,58909.0,58904.0,0.00025459]
[1724994917395,0.19504541,58908.0,58904.0,0.00025459]
[1724994918696,0.19504541,58908.0,58906.0,0.002]
[1724994919297,0.19504541,58908.0,58904.0,0.00025459]
[1724994919499,0.19504541,58908.0,58904.0,0.00425459]
[1724994921305,0.19504541,58908.0,58906.0,0.002]
[1724994922106,0.19504541,58908.0,58904.0,0.00425459]
[1724994922506,0.3608,58906.0,58904.0,0.00425459]
[1724994922907,0.18264027,58905.0,58904.0,0.00425459]
[1724994924410,0.18264027,58905.0,58904.0,0.00025459]